bitfinex-derivatives/quotes_ETHF0:USTF0_20240924
["timestamp","ask_amount","ask_price","bid_price","bid_amount"]
[1727163389007,0.3776,2644.2,2644.0,1.60823]
[1727163389008,0.75581,2644.2,2644.0,1.60823]
[1727163389201,0.37821,2644.2,2644.1,1.23]
[1727163389399,3.58599,2644.3,2644.1,1.60821]
[1727163389701,3.58599,2644.3,2644.2,0.379]
[1727163389702,0.37819,2644.3,2644.2,0.379]
[1727163390101,0.75468,2644.4,2644.2,0.379]
[1727163390302,0.37819,2644.3,2644.2,0.379]
[1727163390498,0.3765,2644.4,2644.2,0.379]
[1727163390705,0.37819,2644.3,2644.2,0.379]
[1727163391295,0.3765,2644.4,2644.2,0.379]
[1727163391296,0.37818,2644.4,2644.2,0.379]
[1727163391502,8.08918,2644.6,2644.3,1.5959]
[1727163391706,0.37819,2644.4,2644.3,1.5959]
[1727163392005,6.3718,2644.6,2644.3,1.5959]
[1727163392201,6.3718,2644.6,2644.4,1.23]
[1727163392202,3.58595,2644.6,2644.4,1.23]
[1727163392400,3.2078,2644.6,2644.4,1.60817]
[1727163392605,3.2078,2644.6,2644.4,1.23]
[1727163392606,3.58595,2644.6,2644.4,1.23]
[1727163393206,0.37813,2644.7,2644.4,1.60816]
[1727163393796,0.37816,2644.5,2644.1,0.99001403]
[1727163393996,3.2078,2644.5,2644.3,0.37818]
[1727163394212,3.2078,2644.5,2644.4,0.3834]
[1727163395006,3.58596,2644.5,2644.4,0.3834]
[1727163395609,0.37816,2644.5,2644.4,0.3834]
[1727163396214,0.37818,2644.4,2644.2,1.9756]
[1727163396609,0.37817,2644.4,2644.2,1.9756]
[1727163397207,0.37817,2644.5,2644.3,0.37819]
[1727163398807,0.37817,2644.5,2644.2,1.5974]
[1727163398808,0.37818,2644.4,2644.2,1.9756]
[1727163399000,0.37819,2644.3,2644.2,0.3674]
[1727163402004,0.3782,2644.2,2644.1,0.3706]
[1727163402402,0.37821,2644.1,2644.0,0.3605]
[1727163402607,0.37823,2644.0,2643.9,0.3929]
[1727163404011,0.37823,2644.0,2643.9,0.77114]
[1727163404212,0.37822,2644.1,2643.9,0.77114]
[1727163404412,0.37822,2644.1,2643.9,2.00114]
[1727163405510,0.37823,2644.0,2643.9,1.6229]
[1727163405909,0.37823,2644.0,2643.9,0.3929]
[1727163408023,0.37823,2644.0,2643.9,0.78]
[1727163408718,0.37823,2644.0,2643.9,2.01]
[1727163409723,0.37823,2644.0,2643.9,0.78]
[1727163410113,0.37823,2644.0,2643.9,2.36130543]
[1727163410515,0.37823,2644.0,2643.9,1.77001403]
[1727163410922,0.37823,2644.0,2643.9,2.36130588]
[1727163411727,1.32381,2644.0,2643.9,0.59129185]
[1727163411923,0.37826,2643.8,2643.7,1.72981403]
[1727163412125,0.37826,2643.8,2643.7,0.7398]
[1727163412917,0.37825,2643.9,2643.7,1.11806]
[1727163413118,0.37825,2643.9,2643.8,1.23]
[1727163416126,0.37826,2643.8,2643.7,1.9698]
[1727163416325,0.37826,2643.8,2643.7,2.34807]
[1727163416535,0.37824,2643.9,2643.7,7.71182488]
[1727163416720,0.37824,2643.9,2643.8,1.60826]
[1727163417640,0.37824,2643.9,2643.8,1.23]
[1727163418736,0.37824,2643.9,2643.8,2.81132329]
[1727163419046,0.37824,2643.9,2643.8,2.22001403]
[1727163419343,0.37824,2643.9,2643.8,2.81132552]
[1727163419641,0.37824,2643.9,2643.8,2.81132289]
[1727163419846,0.37824,2643.9,2643.8,2.22001403]
[1727163420831,1.93542618,2644.3,2643.8,4.02549809]
[1727163421043,0.94549,2644.3,2644.0,1.23]
[1727163421235,0.3782,2644.2,2644.1,0.7715]
[1727163421435,0.3782,2644.2,2644.1,1.54121]
[1727163421636,0.3782,2644.2,2644.1,5.32281]
[1727163421846,3.2078,2644.4,2644.1,5.32281]
[1727163421847,0.37819,2644.3,2644.2,0.3782]
[1727163422137,0.37819,2644.3,2644.2,1.23]
[1727163422332,0.3782,2644.2,2644.1,3.38301403]
[1727163422533,0.3782,2644.2,2644.1,3.9742695]
[1727163422739,0.3782,2644.2,2644.1,3.97426129]
[1727163422930,0.3782,2644.2,2644.1,8.13407129]
[1727163423730,3.2078,2644.4,2644.1,8.13407129]
[1727163424040,3.2078,2644.4,2644.2,2.81124757]
[1727163424244,3.2078,2644.4,2644.3,1.5812419]
[1727163424446,3.58598,2644.4,2644.3,1.5812419]
[1727163424845,3.58598,2644.4,2644.3,24.2812419]
[1727163425340,3.58598,2644.4,2644.3,22.7]
[1727163425341,4.53142,2644.4,2644.3,22.7]
[1727163426035,0.37819,2644.3,2644.2,0.99001403]
[1727163426235,0.37819,2644.3,2644.2,1.58123905]
[1727163426446,0.37819,2644.3,2644.2,24.28123905]
[1727163426644,0.37819,2644.3,2644.2,23.69001403]
[1727163426940,0.37819,2644.3,2644.1,2.15301403]
[1727163426941,0.3782,2644.2,2644.1,2.15301403]
[1727163427142,0.3782,2644.2,2644.1,1.163]
[1727163428139,0.3782,2644.2,2644.1,1.75425402]
[1727163428339,0.3782,2644.2,2644.1,2.74426805]
[1727163428739,0.3782,2644.2,2644.1,1.163]
[1727163429146,0.3782,2644.2,2644.1,2.15301403]
[1727163429446,0.3782,2644.2,2644.1,2.74427301]
[1727163430245,0.3782,2644.2,2644.1,2.15301403]
[1727163430548,0.3782,2644.2,2644.1,2.74427337]
[1727163431547,3.58598,2644.4,2644.2,0.37819]
[1727163431751,3.58598,2644.4,2644.3,1.57947525]
[1727163433745,4.53142,2644.4,2644.3,1.57947525]
[1727163434052,4.53142,2644.4,2644.3,2.79406461]
[1727163434450,4.53142,2644.4,2644.3,1.80566572]
[1727163434652,4.53142,2644.4,2644.3,2.79395234]
[1727163434852,4.53142,2644.4,2644.3,1.57954596]
[1727163437358,4.53142,2644.4,2644.3,1.57949994]
[1727163437749,8.35751618,2644.4,2644.1,1.77438662]
[1727163438047,8.35751618,2644.4,2643.7,1.37458662]
[1727163438048,0.94551,2644.2,2643.7,1.37458662]
[1727163438256,1.60826,2643.8,2643.7,0.3863]
[1727163438452,0.37826,2643.8,2643.7,0.3863]
[1727163440259,0.37827,2643.7,2643.6,0.98828662]
[1727163440460,0.37829,2643.6,2643.5,1.71488662]
[1727163440761,0.37829,2643.6,2643.5,0.7266]
[1727163442745,0.3783,2643.5,2643.4,0.98828662]
[1727163442945,0.3783,2643.5,2643.4,2.33169285]
[1727163444160,0.3783,2643.5,2643.4,1.74028662]
[1727163445059,0.3783,2643.5,2643.4,2.33169318]
[1727163445654,0.3783,2643.5,2643.4,3.56169318]
[1727163445862,0.3783,2643.5,2643.4,4.77603527]
[1727163446060,0.3783,2643.5,2643.4,4.18462871]
[1727163446255,0.3783,2643.5,2643.4,2.97028662]
[1727163446453,0.3783,2643.5,2643.4,3.56166399]
[1727163447766,0.3783,2643.5,2643.4,3.56169002]
[1727163448353,0.3783,2643.5,2643.4,2.33169002]
[1727163448557,0.3783,2643.5,2643.4,1.74028662]
[1727163449462,0.3783,2643.5,2643.4,0.752]
[1727163450063,0.3783,2643.5,2643.4,2.3316799]
[1727163450364,0.3783,2643.5,2643.4,1.74028662]
[1727163450555,0.3783,2643.6,2643.4,2.11859662]
[1727163450756,0.3783,2643.6,2643.4,1.13031]
[1727163451062,3.58608,2643.7,2643.5,0.3783]
[1727163451269,3.58608,2643.7,2643.4,3.34859662]
[1727163451468,0.37829,2643.6,2643.4,3.34859662]
[1727163451870,0.37828,2643.7,2643.4,3.34859662]
[1727163452262,0.37829,2643.6,2643.4,3.34859662]
[1727163454763,0.37829,2643.6,2643.4,2.97028662]
[1727163454965,0.37829,2643.6,2643.4,3.34859662]
[1727163455269,0.37826,2643.8,2643.6,0.37828]
[1727163455464,0.37826,2643.8,2643.7,0.3629]
[1727163455860,0.37825,2643.9,2643.7,0.74117]
[1727163456056,0.37825,2643.9,2643.8,0.3664]
[1727163456266,0.37825,2643.9,2643.8,0.7422]
[1727163458366,0.37826,2643.8,2643.7,0.3629]
[1727163458565,0.37829,2643.6,2643.5,0.7415]
[1727163461678,1.60829,2643.6,2643.5,0.7415]
[1727163464273,0.37831,2643.4,2643.3,1.36438662]
[1727163464475,0.37831,2643.4,2643.3,2.34189089]
[1727163464876,0.37831,2643.4,2643.3,0.7622]
[1727163468080,1.23,2643.5,2643.3,0.7622]
[1727163468280,0.37831,2643.4,2643.3,0.7622]
[1727163468781,1.23,2643.5,2643.3,1.14053]
[1727163468782,0.37831,2643.5,2643.3,1.14053]
[1727163468973,0.37831,2643.5,2643.3,0.7622]
[1727163469174,0.37831,2643.5,2643.3,1.14053]
[1727163469376,0.3783,2643.5,2643.3,0.7622]
[1727163469572,0.37831,2643.5,2643.3,1.14053]
[1727163469879,0.37831,2643.4,2643.3,0.7622]
[1727163470074,0.77121,2643.4,2643.3,0.7622]
[1727163478483,0.37831,2643.4,2643.3,1.75048662]
[1727163479283,0.37831,2643.4,2643.3,2.34190565]
[1727163480087,0.37831,2643.4,2643.3,1.75048662]
[1727163480489,0.37831,2643.4,2643.3,2.34191549]
[1727163480889,0.37831,2643.4,2643.3,3.56249191]
[1727163481089,0.37831,2643.4,2643.3,2.57420529]
[1727163481385,0.37831,2643.5,2643.3,4.43831078]
[1727163481590,0.37831,2643.5,2643.4,2.8011389]
[1727163481789,0.37829,2643.6,2643.4,1.81236179]
[1727163481994,0.37829,2643.6,2643.5,1.58057991]
[1727163482188,1.93662163,2643.8,2643.5,1.8124612]
[1727163482397,1.36922163,2643.7,2643.6,1.34981483]
[1727163482701,0.37827,2643.7,2643.6,3.16277498]
[1727163482995,0.37827,2643.7,2643.6,25.86277498]
[1727163483389,2.59922163,2643.7,2643.6,4.60554936]
[1727163483587,1.60827,2643.7,2643.6,3.65934564]
[1727163483890,4.04038745,2643.7,2643.6,3.29874564]
[1727163484092,1.32401,2643.6,2643.5,0.99050008]
[1727163484397,1.32401,2643.6,2643.5,1.5819366]
[1727163484398,6.12211,2643.6,2643.5,1.5819366]
[1727163484695,8.09590226,2643.6,2643.5,0.59143652]
[1727163484892,11.87830226,2643.6,2643.5,1.5819366]
[1727163485098,1.32406,2643.5,2643.4,0.99050008]
[1727163485387,2.55406,2643.5,2643.4,1.58195283]
[1727163488303,2.55406,2643.5,2643.4,0.59145275]
[1727163489190,1.3241,2643.4,2643.3,1.75270008]
[1727163489397,2.81249105,2643.4,2643.3,1.75270008]
[1727163489897,2.81249105,2643.4,2643.3,2.3441767]
[1727163490800,2.81249105,2643.4,2643.3,2.34417669]
[1727163491598,6.59569105,2643.4,2643.3,1.58197669]
[1727163491895,6.59569105,2643.4,2643.1,0.99050008]
[1727163491896,1.32421,2643.2,2643.1,0.99050008]
[1727163492095,1.32421,2643.2,2643.1,1.58199212]
[1727163492297,5.10741,2643.2,2643.1,0.99050008]
[1727163492504,1.32431,2643.0,2642.9,1.72330008]
[1727163492693,7.25016289,2643.0,2642.9,1.32434691]
[1727163493092,7.25016289,2643.0,2642.9,0.7328]
[1727163493294,5.76211,2643.0,2642.9,0.7328]
[1727163493493,1.32436,2642.9,2642.8,0.99050008]
[1727163493700,1.32436,2642.9,2642.7,1.87318549]
[1727163493701,0.3784,2642.8,2642.7,1.37790008]
[1727163493905,1.6084,2642.8,2642.7,1.96948894]
[1727163494105,2.60013484,2642.8,2642.7,1.96948894]
[1727163494299,2.60013484,2642.8,2642.7,0.3874]
[1727163494300,1.6084,2642.8,2642.7,0.3874]
[1727163500108,4.8162,2642.8,2642.7,0.3874]
[1727163503806,5.76221,2642.8,2642.7,0.3874]
[1727163505010,6.14441,2642.8,2642.7,0.3874]
[1727163505708,5.1984,2642.8,2642.7,0.3874]
[1727163506011,4.8162,2642.8,2642.7,0.3874]
[1727163506417,1.6084,2642.8,2642.7,0.3874]
[1727163506601,1.23,2642.8,2642.7,0.3874]
[1727163506908,0.37839,2642.9,2642.7,0.76581]
[1727163510710,0.3784,2642.8,2642.7,0.3874]
[1727163510921,1.60838,2643.0,2642.7,0.3874]
[1727163511124,1.23,2643.0,2642.8,0.37839]
[1727163511421,1.93753484,2643.4,2642.9,0.37837]
[1727163511422,0.37835,2643.2,2642.9,0.37837]
[1727163511620,0.37835,2643.2,2643.0,0.3976]
[1727163511815,0.37835,2643.2,2643.1,0.3651]
[1727163512930,0.37834,2643.2,2643.1,0.3651]
[1727163520231,1.32421,2643.2,2643.1,0.3651]
[1727163520624,1.32421,2643.2,2643.0,0.7754]
[1727163520625,1.32426,2643.1,2643.0,0.7754]
[1727163520824,2.55426,2643.1,2643.0,0.7754]
[1727163521020,5.76206,2643.1,2643.0,0.7754]
[1727163521626,0.37839,2642.9,2642.8,0.3807]
[1727163521929,1.60839,2642.9,2642.8,0.3807]
[1727163522824,2.55436,2642.9,2642.8,0.3807]
[1727163523020,0.37841,2642.7,2642.6,0.99050008]
[1727163523228,0.37841,2642.7,2642.5,1.38450008]
[1727163523229,0.37843,2642.6,2642.5,1.38450008]
[1727163523433,0.37843,2642.6,2642.5,0.394]
[1727163526733,4.73008,2642.6,2642.3,0.99050008]
[1727163526931,0.37847,2642.3,2642.2,3.24118557]
[1727163527125,1.60847,2642.3,2642.2,1.75540008]
[1727163527527,1.60847,2642.3,2642.2,0.366]
[1727163527936,1.60847,2642.3,2642.1,1.36130008]
[1727163527937,0.37849,2642.2,2642.1,0.3708]
[1727163529432,0.3785,2642.1,2642.0,0.7649]
[1727163529733,0.3785,2642.1,2641.9,23.69050008]
[1727163529734,0.37852,2642.0,2641.9,23.69050008]
[1727163529933,0.37852,2642.0,2641.9,1.58223089]
[1727163530134,0.37852,2642.0,2641.9,0.99050008]
[1727163531235,0.37853,2641.9,2641.8,24.08820008]
[1727163531434,1.60853,2641.9,2641.8,24.67994335]
[1727163531627,1.60853,2641.9,2641.8,1.38820008]
[1727163531833,1.60853,2641.9,2641.8,0.9894489]
[1727163532030,1.60853,2641.9,2641.8,0.3977]
[1727163541737,0.37856,2641.7,2641.6,0.777]
[1727163542040,1.60856,2641.7,2641.6,1.1634]
[1727163542646,1.60856,2641.7,2641.6,1.54197]
[1727163543037,1.23,2641.7,2641.6,1.54197]
[1727163544649,1.60856,2641.7,2641.6,1.54197]
[1727163546941,1.60856,2641.7,2641.6,1.1634]
[1727163547343,1.60856,2641.7,2641.6,0.777]
[1727163550755,2.55496,2641.7,2641.6,0.777]
[1727163552257,1.60856,2641.7,2641.6,0.777]
[1727163560954,1.60856,2641.7,2641.4,0.7764]
[1727163560955,0.37859,2641.5,2641.4,0.7764]
[1727163561163,1.23,2641.5,2641.4,0.77639]
[1727163566359,0.37856,2641.8,2641.4,4.1834]
[1727163566560,3.58634,2641.9,2641.5,3.2078]
[1727163566868,1.23,2641.7,2641.6,0.37857]
[1727163567060,1.23,2641.7,2641.6,4.54547]
[1727163567260,1.23,2641.7,2641.6,5.53597008]
[1727163568372,1.23,2641.7,2641.6,6.12775297]
[1727163569569,1.23,2641.7,2641.6,5.13725289]
[1727163570171,1.23,2641.7,2641.6,7.30932198]
[1727163570465,1.23,2641.7,2641.6,6.08404741]
[1727163570958,1.23,2641.7,2641.6,5.13723053]
[1727163571264,1.23,2641.7,2641.6,6.60424587]
[1727163571468,1.23,2641.7,2641.6,6.08408335]
[1727163571671,1.23,2641.7,2641.6,6.60425772]
[1727163572161,1.23,2641.7,2641.6,6.60424831]
[1727163572561,1.23,2641.7,2641.6,7.07767087]
[1727163573369,1.23,2641.7,2641.6,7.07767533]
[1727163574562,1.23,2641.7,2641.6,12.74548014]
[1727163575464,1.23,2641.7,2641.6,10.68670183]
[1727163575660,1.23,2641.7,2641.6,12.27255922]
[1727163575862,1.23,2641.7,2641.6,12.22533718]
[1727163576170,1.23,2641.7,2641.6,12.74599432]
[1727163576361,1.23,2641.7,2641.6,12.77784259]
[1727163578064,1.23,2641.7,2641.6,9.09483457]
[1727163578768,1.23,2641.7,2641.6,5.01889646]
[1727163578966,1.23,2641.7,2641.6,4.54547]
[1727163579173,1.23,2641.7,2641.6,8.6214646]
[1727163579375,1.23,2641.7,2641.6,9.09488245]
[1727163579776,1.23,2641.7,2641.6,14.76284452]
[1727163580076,1.23,2641.7,2641.6,14.76284294]
[1727163580276,1.23,2641.7,2641.6,12.77885102]
[1727163582371,1.23,2641.7,2641.6,12.77880043]
[1727163583571,1.23,2641.7,2641.6,12.77851879]
[1727163586563,1.23,2641.7,2641.6,12.77852399]
[1727163587169,0.66190288,2641.7,2641.6,12.77852399]
[1727163587576,0.66190288,2641.7,2641.6,10.05636616]
[1727163587766,0.66190288,2641.7,2641.6,12.30510113]
[1727163588071,0.66190288,2641.7,2641.6,12.77851901]
[1727163588475,0.66190288,2641.7,2641.6,12.78071807]
[1727163588778,0.66190288,2641.7,2641.6,16.01513659]
[1727163589368,0.66190288,2641.7,2641.6,13.43043686]
[1727163589589,1.04046288,2641.7,2641.6,14.78416891]
[1727163589778,0.66190288,2641.7,2641.6,12.30720825]
[1727163589991,0.66190288,2641.7,2641.6,13.06466779]
[1727163590167,0.66190288,2641.7,2641.6,13.53808]
[1727163590478,0.66190288,2641.7,2641.6,12.78062046]
[1727163593580,0.66190288,2641.7,2641.6,12.78020601]
[1727163594480,1.04046288,2641.7,2641.6,8.61603601]
[1727163594672,1.04046288,2641.7,2641.6,9.38547538]
[1727163594878,1.04046288,2641.7,2641.6,8.20194485]
[1727163595480,1.04046288,2641.7,2641.6,5.74496382]
[1727163595775,1.04046288,2641.7,2641.6,5.74500688]
[1727163596379,1.04046288,2641.7,2641.6,5.74518773]
[1727163598283,1.04046288,2641.7,2641.6,6.1239342]
[1727163598685,1.04046288,2641.7,2641.6,5.7453642]
[1727163598983,6.57451666,2641.7,2641.6,4.77621385]
[1727163599187,6.57451666,2641.7,2641.6,2.71677715]
[1727163599478,6.57451666,2641.7,2641.6,3.30861692]
[1727163601182,5.58176288,2641.7,2641.6,3.30861692]
[1727163601376,0.94644,2641.6,2641.3,1.48811017]
[1727163601682,0.94644,2641.6,2641.2,1.48811017]
[1727163601683,1.32517,2641.3,2641.2,1.48811017]
[1727163601987,0.37864,2641.1,2640.9,6.34097525]
[1727163602173,1.60866,2641.0,2640.9,5.96230525]
[1727163602376,1.60866,2641.0,2640.9,8.65991791]
[1727163602577,1.60866,2641.0,2640.9,2.69761266]
[1727163602777,2.55531,2641.0,2640.9,2.71812444]
[1727163602981,3.54833923,2641.0,2640.9,1.70307006]
[1727163603283,0.3787,2640.7,2640.6,1.48862165]
[1727163603477,0.94673,2640.8,2640.5,1.48862165]
[1727163603478,1.60872,2640.6,2640.5,1.48862165]
[1727163603780,0.37873,2640.5,2640.4,1.48862165]
[1727163603986,1.23,2640.5,2640.4,2.95668928]
[1727163604180,1.23,2640.5,2640.4,1.46806763]
[1727163604381,1.23,2640.5,2640.4,1.48822405]
[1727163604687,1.60873,2640.5,2640.3,1.87342405]
[1727163605183,1.23,2640.5,2640.3,1.87342405]
[1727163605481,1.23,2640.5,2640.3,0.3852]
[1727163606091,1.23,2640.5,2640.3,1.87342405]
[1727163606475,1.23,2640.5,2640.3,0.3852]
[1727163609677,1.23,2640.5,2640.3,0.76396]
[1727163610391,1.23,2640.5,2640.3,0.3852]
[1727163610687,1.23,2640.5,2640.3,0.76394]
[1727163610883,1.23,2640.5,2640.4,0.37874]
[1727163611383,1.23,2640.6,2640.5,0.37873]
[1727163612582,1.23,2640.6,2640.4,0.37874]
[1727163612983,1.23,2640.6,2640.4,4.53272649]
[1727163614092,1.23,2640.6,2640.4,0.37874]
[1727163615292,1.23,2640.6,2640.3,0.3852]
[1727163615484,1.23,2640.6,2640.4,0.37874]
[1727163615681,1.23,2640.6,2640.3,0.3852]
[1727163615881,3.2078,2640.8,2640.3,0.3852]
[1727163616087,1.23,2640.6,2640.4,0.37873]
[1727163616387,1.23,2640.6,2640.5,22.7]
[1727163616596,1.60872,2640.6,2640.5,22.7]
[1727163616791,1.23,2640.6,2640.5,22.7]
[1727163618098,1.23,2640.6,2640.5,23.07873]
[1727163621890,4.53264,2641.1,2640.7,0.3787]
[1727163622198,20.19374279,2641.5,2640.8,4.86516166]
[1727163622493,1.23,2640.9,2640.8,5.24385166]
[1727163622889,1.23,2640.9,2640.8,9.03025166]
[1727163623496,1.23,2640.9,2640.8,4.86516166]
[1727163623684,1.23,2640.9,2640.8,0.7802]
[1727163623888,1.23,2640.9,2640.8,1.15889]
[1727163625097,1.23,2640.9,2640.8,0.7802]
[1727163627102,1.23,2640.9,2640.8,1.15889]
[1727163627896,1.23,2640.9,2640.8,0.7802]
[1727163628200,1.23,2640.9,2640.8,1.15889]
[1727163628404,1.23,2640.9,2640.8,0.7802]
[1727163629203,1.60867,2640.9,2640.8,0.7802]
[1727163629403,0.3787,2640.7,2640.6,0.3628]
[1727163629606,1.6087,2640.7,2640.6,0.3628]
[1727163630503,1.23,2640.7,2640.6,0.74152]
[1727163633412,1.23,2640.9,2640.8,0.37868]
[1727163633913,3.035,2641.4,2640.8,3.7864]
[1727163633914,0.3963,2641.4,2640.8,3.7864]
[1727163634114,1.60862,2641.3,2641.1,0.37864]
[1727163634414,6.26921362,2641.5,2641.2,1.11232]
[1727163634622,1.23,2641.3,2641.2,1.11232]
[1727163635504,1.60862,2641.3,2641.2,0.7337]
[1727163635706,1.23,2641.3,2641.2,0.7337]
[1727163636099,1.23,2641.3,2641.2,1.11233]
[1727163640105,0.37859,2641.5,2641.2,0.7337]
[1727163640309,0.37859,2641.6,2641.3,0.74481]
[1727163640510,1.23,2641.4,2641.3,0.74481]
[1727163640709,1.23,2641.4,2641.3,0.3662]
[1727163641409,1.23,2641.4,2641.3,0.74482]
[1727163642314,1.23,2641.4,2641.3,0.3662]
[1727163646115,1.23,2641.4,2641.0,1.48822405]
[1727163646307,1.60865,2641.1,2640.9,1.88292405]
[1727163646508,1.23,2641.0,2640.9,1.88292405]
[1727163646820,1.23,2641.0,2640.9,2.20439289]
[1727163647210,1.23,2641.0,2640.9,2.2044298]
[1727163647417,1.23,2641.0,2640.9,3.69265385]
[1727163648116,0.37862,2641.3,2640.9,4.07131385]
[1727163648413,4.19996083,2641.4,2641.1,0.37864]
[1727163648414,1.23,2641.2,2641.1,0.37864]
[1727163648618,1.23,2641.2,2641.1,2.18825751]
[1727163649312,1.23,2641.2,2641.1,1.80961751]
[1727163649514,1.23,2641.2,2641.1,2.18821534]
[1727163650417,2.66,2641.2,2641.1,2.18821534]
[1727163651016,2.66,2641.2,2641.1,1.80957534]
[1727163651419,2.66,2641.2,2640.5,3.2078]
[1727163651610,2.66,2641.2,2641.0,0.37865]
[1727163654518,2.66,2641.2,2641.1,0.373]
[1727163655713,2.66,2641.2,2641.1,0.7693]
[1727163656510,2.66,2641.2,2641.1,1.14794]
[1727163656713,3.03863,2641.2,2641.1,0.7693]
[1727163657629,3.03863,2641.2,2641.1,0.373]
[1727163658124,2.66,2641.2,2641.1,0.373]
[1727163658812,2.66,2641.2,2641.1,0.75164]
[1727163659734,0.3833,2641.3,2641.1,0.75164]
[1727163660027,6.24641,2641.4,2641.1,0.373]
[1727163660215,6.24641,2641.4,2641.2,0.3668]
[1727163660724,5.8678,2641.4,2641.2,0.74542]
[1727163661226,3.2078,2641.4,2641.3,0.37862]
[1727163661423,5.8678,2641.4,2641.2,0.3668]
[1727163661619,0.3923,2641.3,2641.2,23.44543]
[1727163661826,0.3923,2641.3,2641.2,23.0668]
[1727163662125,0.3923,2641.3,2641.2,23.44543]
[1727163663422,0.3923,2641.3,2641.2,24.03729569]
[1727163664823,0.3923,2641.3,2641.2,23.44543]
[1727163665222,0.3923,2641.3,2641.2,24.03730957]
[1727163665520,0.3923,2641.3,2641.2,24.03730127]
[1727163666826,0.3923,2641.3,2641.2,24.55781025]
[1727163667129,0.3923,2641.3,2641.2,24.03730127]
[1727163667325,0.3923,2641.3,2641.2,25.5047845]
[1727163667523,0.3923,2641.3,2641.2,24.55778664]
[1727163668325,0.3923,2641.3,2641.2,23.44543]
[1727163668629,0.3923,2641.3,2641.2,24.55787096]
[1727163668824,0.3923,2641.3,2641.2,24.92997096]
[1727163669527,0.3923,2641.3,2641.2,25.87697529]
[1727163670420,1.6223,2641.3,2641.2,24.55134096]
[1727163670638,2.00092,2641.3,2641.2,24.55134096]
[1727163671027,1.6223,2641.3,2641.2,24.55134096]
[1727163671527,1.6223,2641.3,2641.2,27.06633161]
[1727163672435,1.6223,2641.3,2641.2,3.98770161]
[1727163673138,2.99308083,2641.3,2641.2,3.04068802]
[1727163674225,2.99308083,2641.3,2641.2,3.9877091]
[1727163674729,2.99308083,2641.3,2641.2,3.04068802]
[1727163674925,2.99308083,2641.3,2641.2,2.52092137]
[1727163675222,2.99308083,2641.3,2641.2,3.04163489]
[1727163675427,2.61446083,2641.3,2641.2,2.52092164]
[1727163675635,2.99308083,2641.3,2641.2,4.5805931]
[1727163675936,4.19996083,2641.4,2641.2,10.74768043]
[1727163676237,3.2078,2641.4,2641.3,6.00910117]
[1727163676533,4.4378,2641.4,2641.3,3.94942971]
[1727163676730,4.4378,2641.4,2641.3,7.3156847]
[1727163677132,4.4378,2641.4,2641.3,6.84221651]
[1727163677436,4.4378,2641.4,2641.3,8.49936006]
[1727163678241,4.4378,2641.4,2641.3,5.77691032]
[1727163678431,1.23,2641.4,2641.3,8.49945085]
[1727163679534,1.23,2641.4,2641.3,9.25699869]
[1727163679733,1.23,2641.4,2641.3,9.25545329]
[1727163680237,1.23,2641.4,2641.3,8.49430545]
[1727163681441,1.23,2641.4,2641.3,10.47943771]
[1727163681641,1.23,2641.4,2641.3,9.25184615]
[1727163681841,1.23,2641.4,2641.3,11.23683463]
[1727163682036,1.23,2641.4,2641.3,11.23683488]
[1727163682340,1.23,2641.4,2641.3,10.47929393]
[1727163682734,1.23,2641.4,2641.3,8.92060065]
[1727163682929,1.6086,2641.4,2641.3,6.54109111]
[1727163683329,3.09805965,2641.4,2641.3,3.24933895]
[1727163683537,3.09805965,2641.4,2641.3,3.24955211]
[1727163683942,3.09805965,2641.4,2641.3,2.30266735]
[1727163684245,3.09805965,2641.4,2641.3,3.24967674]
[1727163684445,3.09805965,2641.4,2641.3,2.30277043]
[1727163684743,3.09805965,2641.4,2641.3,2.30280511]
[1727163684947,3.09805965,2641.4,2641.3,1.7109277]
[1727163685244,3.09805965,2641.4,2641.3,1.78174552]
[1727163685544,3.09805965,2641.4,2641.3,1.18985785]
[1727163685839,3.09805965,2641.4,2641.3,1.78174759]
[1727163686241,1.6086,2641.4,2641.3,0.59188974]
[1727163686835,3.5945462,2641.4,2641.3,0.59188974]
[1727163687453,1.6086,2641.4,2641.3,0.59188974]
[1727163687762,4.5410562,2641.4,2641.3,0.59188974]
[1727163688148,4.5410562,2641.4,2641.0,2.74058848]
[1727163688350,5.80975643,2641.1,2641.0,2.74058848]
[1727163688564,4.81644,2641.1,2641.0,5.04366955]
[1727163688753,4.81644,2641.1,2641.0,5.99077082]
[1727163689058,4.81644,2641.1,2641.0,6.46432153]
[1727163689249,4.81644,2641.1,2641.0,6.46428365]
[1727163690254,4.4378,2641.1,2641.0,6.46058365]
[1727163690452,4.4378,2641.1,2641.0,4.85795517]
[1727163690961,4.4378,2641.1,2641.0,4.47929517]
[1727163691159,4.4378,2641.1,2641.0,5.69149409]
[1727163691353,4.4378,2641.1,2641.0,4.85795517]
[1727163691748,4.4378,2641.1,2641.0,6.85868771]
[1727163691949,4.4378,2641.1,2641.0,8.87599698]
[1727163692159,4.4378,2641.1,2641.0,7.6921649]
[1727163692463,4.4378,2641.1,2641.0,5.31277236]
[1727163692759,4.4378,2641.1,2641.0,5.31282768]
[1727163692955,4.4378,2641.1,2641.0,4.47923731]
[1727163693665,4.4378,2641.1,2641.0,5.31283409]
[1727163694155,4.4378,2641.1,2641.0,4.47901139]
[1727163694363,4.4378,2641.1,2641.0,5.31262244]
[1727163694762,4.4378,2641.1,2641.0,5.31262582]
[1727163694956,4.4378,2641.1,2641.0,4.47901477]
[1727163695156,4.4378,2641.1,2641.0,2.94001681]
[1727163695356,4.4378,2641.1,2641.0,4.4790345]
[1727163695860,4.4378,2641.1,2641.0,5.3126421]
[1727163696461,4.4378,2641.1,2641.0,3.28925952]
[1727163697053,4.4378,2641.1,2641.0,3.66791952]
[1727163697263,4.4378,2641.1,2641.0,4.50148047]
[1727163697458,4.4378,2641.1,2641.0,3.66791952]